[Event "MPL-1 Indian Chess Tour 2022"]
[Site "Online"]
[Date "2022.03.31"]
[Round "10.5"]
[White "Harika, Dronavalli"]
[Black "Sadhwani, Raunak"]
[Result "1-0"]
[ECO "A28"]
[WhiteElo "2517"]
[BlackElo "2616"]
[Annotator "RC"]
[PlyCount "113"]
[EventDate "2022.03.30"]
[EventType "tourn"]
[EventCountry "NET"]
[SourceTitle "playchess.com"]
[Source "ChessBase"]
[SourceQuality "1"]
[TimeControl "5400+30"]

1. c4 {[%emt 1:15:40]} e5 {[%emt 1:15:40]} 2. Nc3 {[%emt 0:00:23]} Nf6 {[%emt 0:00:26]} 3. Nf3 {[%emt 0:00:22]} Nc6 {[%emt 0:00:23]} 4. e4 {[%emt 0:00:22]} Bb4 {[%emt 0:00:55]} 5. d3 {[%emt 0:00:24]} d6 {[%emt 0:00:33]} 6. a3 {[%emt 0:00:22]} Bxc3+ {[%emt 0:00:53]} 7. bxc3 {[%emt 0:00:22]} O-O {[%emt 0:00:25]} 8. g3 {[%emt 0:00:22]} h6 {[%emt 0:00:23]} 9. Bg2 {[%emt 0:00:22]} Nh7 {[%emt 0:00:22]} 10. O-O {[%emt 0:00:40]} f5 {[%emt 0:00:57]} 11. exf5 {[%emt 0:01:16]} Bxf5 {[%emt 0:00:19]} 12. d4 {[%emt 0:02:53]} Qf6 {[%emt 0:02:43]} 13. Nh4 {[%emt 0:01:44]} Bd7 {[%emt 0:00:55]} 14. Bd5+ {[%emt 0:04:33]} Kh8 {[%emt 0:00:24]} 15. dxe5 {[%emt 0:01:51]} Nxe5 {[%emt 0:01:50]} 16. f4 {[%emt 0:00:22]} Bh3 {[%emt 0:02:09]} 17. Be3 {[%emt 0:01:19]} c6 {[%emt 0:03:45]} 18. Be4 {[%emt 0:02:37]} Nxc4 {[%emt 0:01:27]} 19. Bd4 {[%emt 0:00:23]} Qf7 {[%emt 0:00:31]} 20. Ng6+ {[%emt 0:00:53]} Kg8 {[%emt 0:00:23]} 21. Nxf8 {[%emt 0:00:22]} Nxf8 {[%emt 0:02:45]} 22. Re1 {[%emt 0:00:22]} Ne6 {[%emt 0:00:48]} 23. Qd3 {[%emt 0:00:45]} Nxd4 {[%emt 0:00:51]} 24. Qxd4 {[%emt 0:00:32]} d5 {[%emt 0:00:33]} 25. Bd3 {[%emt 0:01:15]} Nd6 {[%emt 0:00:22]} 26. Re5 {[%emt 0:00:31]} Bf5 {[%emt 0:01:32]} 27. Bxf5 {[%emt 0:00:44]} Nxf5 {[%emt 0:00:21]} 28. Qd3 {[%emt 0:00:30]} Rf8 {[%emt 0:00:21]} 29. Rae1 {[%emt 0:00:25]} h5 {[%emt 0:00:40]} 30. Qe2 {[%emt 0:00:57]} g6 {[%emt 0:01:16]} 31. Re8 {[%emt 0:00:45]} Rxe8 {[%emt 0:00:26]} 32. Qxe8+ {[%emt 0:00:21]} Kg7 {[%emt 0:00:20]} 33. a4 {[%emt 0:00:52]} Qf6 {[%emt 0:00:29]} 34. Re6 {[%emt 0:00:36]} Qf7 {[%emt 0:00:25]} 35. a5 {[%emt 0:00:23]} a6 {[%emt 0:00:36]} 36. Kf2 {[%emt 0:00:41]} Qxe8 {[%emt 0:00:25]} 37. Rxe8 {[%emt 0:00:21]} Kf7 {[%emt 0:00:20]} 38. Rb8 {[%emt 0:00:27]} Nd6 {[%emt 0:00:20]} 39. Ke2 {[%emt 0:00:57]} c5 {[%emt 0:00:30]} 40. Kd3 {[%emt 0:00:30]} Ke6 {[%emt 0:00:28]} 41. h3 {[%emt 0:00:32]} Kf5 {[%emt 0:00:43]} 42. Rf8+ {[%emt 0:00:22]} Ke6 {[%emt 0:00:21]} 43. g4 {[%emt 0:00:30]} hxg4 {[%emt 0:00:42]} 44. hxg4 {[%emt 0:00:21]} Ke7 {[%emt 0:00:29]} 45. Rg8 {[%emt 0:00:45]} Kf7 {[%emt 0:00:22]} 46. Rb8 {[%emt 0:00:22]} Ke6 {[%emt 0:00:25]} 47. Ke2 {[%emt 0:00:32]} Kf6 {[%emt 0:00:37]} 48. Kf3 {[%emt 0:00:32]} Ke6 {[%emt 0:00:21]} 49. Kg3 {[%emt 0:00:37]} Ne4+ {[%emt 0:00:30]} 50. Kf3 {[%emt 0:00:34]} Nd6 {[%emt 0:01:01]} 51. Rg8 {[%emt 0:00:25]} Kf7 {[%emt 0:00:25]} 52. Rh8 {[%emt 0:00:22]} Ke6 {[%emt 0:00:38]} 53. Rh6 {[%emt 0:00:31]} Kf7 {[%emt 0:00:37]} 54. f5 {[%emt 0:00:26]} Ne4 {[%emt 0:00:21]} 55. Rxg6 {[%emt 0:00:32]} Nxc3 {[%emt 0:00:20]} 56. Rb6 {[%emt 0:00:22]} d4 {[%emt 0:00:28]} 57. g5 {[%emt 0:00:28]} 1-0

[Event "MPL-1 Indian Chess Tour 2022"]
[Site "Online"]
[Date "2022.03.27"]
[Round "11.1"]
[White "Karthikeyan, Murali"]
[Black "Sethuraman, S.P."]
[Result "1/2-1/2"]
[ECO "B51"]
[WhiteElo "2622"]
[BlackElo "2619"]
[Annotator "ChessBase"]
[PlyCount "117"]
[EventDate "2022.03.30"]
[EventType "tourn"]
[EventCountry "NET"]
[SourceTitle "playchess.com"]
[Source "ChessBase"]
[SourceQuality "1"]
[TimeControl "5400+30"]

1. e4 {[%emt 1:15:40]} c5 {[%emt 1:15:40]} 2. Nf3 {[%emt 0:00:23]} d6 {[%emt 0:00:23]} 3. Bb5+ {[%emt 0:00:23]} Nd7 {[%emt 0:00:22]} 4. O-O {[%emt 0:00:25]} a6 {[%emt 0:00:26]} 5. Be2 {[%emt 0:00:21]} Ngf6 {[%emt 0:00:36]} 6. d3 {[%emt 0:00:21]} g6 {[%emt 0:00:28]} 7. c4 {[%emt 0:00:25]} Bg7 {[%emt 0:00:32]} 8. Nc3 {[%emt 0:00:21]} O-O {[%emt 0:00:21]} 9. d4 {[%emt 0:00:21]} cxd4 {[%emt 0:02:07]} 10. Nxd4 {[%emt 0:00:20]} Nc5 {[%emt 0:00:21]} 11. f3 {[%emt 0:00:37]} Qb6 {[%emt 0:01:21]} 12. Kh1 {[%emt 0:00:34]} Ne6 {[%emt 0:00:38]} 13. Nc2 {[%emt 0:00:46]} Bd7 {[%emt 0:00:43]} 14. Rb1 {[%emt 0:01:36]} Qa5 {[%emt 0:01:32]} 15. Be3 {[%emt 0:03:02]} Rfc8 {[%emt 0:00:26]} 16. b4 {[%emt 0:01:06]} Qd8 {[%emt 0:00:31]} 17. Nd5 {[%emt 0:00:29]} Nxd5 {[%emt 0:00:41]} 18. exd5 {[%emt 0:00:30]} Nf8 {[%emt 0:00:20]} 19. Bd4 {[%emt 0:00:56]} Bxd4 {[%emt 0:00:55]} 20. Qxd4 {[%emt 0:00:33]} a5 {[%emt 0:00:57]} 21. a3 {[%emt 0:00:36]} axb4 {[%emt 0:00:25]} 22. axb4 {[%emt 0:00:20]} Bf5 {[%emt 0:00:26]} 23. Rb2 {[%emt 0:01:27]} Bxc2 {[%emt 0:00:24]} 24. Rxc2 {[%emt 0:00:23]} Nd7 {[%emt 0:00:22]} 25. g3 {[%emt 0:03:07]} Qb6 {[%emt 0:00:40]} 26. Qd2 {[%emt 0:00:32]} Ra3 {[%emt 0:00:40]} 27. Rfc1 {[%emt 0:01:20]} Qf2 {[%emt 0:02:39]} 28. f4 {[%emt 0:01:17]} Nf6 {[%emt 0:00:42]} 29. Bf1 {[%emt 0:01:16]} Qxd2 {[%emt 0:02:59]} 30. Rxd2 {[%emt 0:00:20]} Rb3 {[%emt 0:00:24]} 31. b5 {[%emt 0:00:39]} Kf8 {[%emt 0:05:03]} 32. Re1 {[%emt 0:00:50]} Nd7 {[%emt 0:01:00]} 33. Bh3 {[%emt 0:01:12]} f5 {[%emt 0:00:22]} 34. Rde2 {[%emt 0:00:48]} Re8 {[%emt 0:00:21]} 35. Bf1 {[%emt 0:00:49]} Ra3 {[%emt 0:01:02]} 36. Kg2 {[%emt 0:03:28]} Nc5 {[%emt 0:00:21]} 37. h3 {[%emt 0:00:56]} Ne4 {[%emt 0:01:01]} 38. g4 {[%emt 0:00:30]} Rea8 {[%emt 0:00:22]} 39. Kh2 {[%emt 0:00:35]} Ra2 {[%emt 0:00:44]} 40. Bg2 {[%emt 0:00:37]} Rxe2 {[%emt 0:00:22]} 41. Rxe2 {[%emt 0:00:20]} Nc5 {[%emt 0:00:21]} 42. gxf5 {[%emt 0:00:40]} gxf5 {[%emt 0:00:22]} 43. h4 {[%emt 0:00:21]} Ra4 {[%emt 0:01:18]} 44. Rc2 {[%emt 0:00:21]} Kf7 {[%emt 0:00:27]} 45. Bf1 {[%emt 0:00:31]} Ra1 {[%emt 0:00:34]} 46. Bh3 {[%emt 0:00:27]} Kf6 {[%emt 0:00:28]} 47. Rg2 {[%emt 0:00:22]} Ne4 {[%emt 0:00:33]} 48. Rg8 {[%emt 0:00:27]} Ra2+ {[%emt 0:00:21]} 49. Kg1 {[%emt 0:00:22]} Nd2 {[%emt 0:00:39]} 50. Rf8+ {[%emt 0:00:37]} Kg7 {[%emt 0:00:21]} 51. Re8 {[%emt 0:00:21]} Kf7 {[%emt 0:00:26]} 52. Rh8 {[%emt 0:00:25]} Kg7 {[%emt 0:00:37]} 53. Re8 {[%emt 0:00:30]} Kf7 {[%emt 0:00:21]} 54. Rh8 {[%emt 0:00:21]} Ra1+ {[%emt 0:00:31]} 55. Kh2 {[%emt 0:01:00]} Kg7 {[%emt 0:00:28]} 56. Re8 {[%emt 0:00:35]} Kf7 {[%emt 0:00:21]} 57. Rh8 {[%emt 0:00:21]} Kg7 {[%emt 0:00:42]} 58. Re8 {[%emt 0:00:26]} Kf7 {[%emt 0:00:27]} 59. Rh8 {[%emt 0:00:23]} 1/2-1/2

[Event "MPL-1 Indian Chess Tour 2022"]
[Site "Online"]
[Date "2022.03.27"]
[Round "11.3"]
[White "Gukesh D"]
[Black "Mendonca, Leon Luke"]
[Result "1-0"]
[ECO "B90"]
[WhiteElo "2614"]
[BlackElo "2536"]
[Annotator "ChessBase"]
[PlyCount "93"]
[EventDate "2022.03.30"]
[EventType "tourn"]
[EventCountry "NET"]
[SourceTitle "playchess.com"]
[Source "ChessBase"]
[SourceQuality "1"]
[TimeControl "5400+30"]

1. e4 {[%emt 1:15:40]} c5 {[%emt 1:15:40]} 2. Nf3 {[%emt 0:00:24]} d6 {[%emt 0:00:22]} 3. d4 {[%emt 0:00:24]} cxd4 {[%emt 0:00:21]} 4. Nxd4 {[%emt 0:00:21]} Nf6 {[%emt 0:00:22]} 5. Nc3 {[%emt 0:00:22]} a6 {[%emt 0:00:21]} 6. Qd3 {[%emt 0:00:23]} e6 {[%emt 0:00:32]} 7. a4 {[%emt 0:01:45]} b6 {[%emt 0:00:24]} 8. Qg3 {[%emt 0:01:22]} Bb7 {[%emt 0:01:01]} 9. f3 {[%emt 0:00:26]} Nbd7 {[%emt 0:01:08]} 10. Be2 {[%emt 0:00:37]} Be7 {[%emt 0:01:44]} 11. Qxg7 {[%emt 0:03:48]} Rg8 {[%emt 0:00:26]} 12. Qh6 {[%emt 0:00:21]} Rxg2 {[%emt 0:00:35]} 13. Be3 {[%emt 0:00:22]} Rg6 {[%emt 0:02:34]} 14. Qh3 {[%emt 0:00:24]} Rc8 {[%emt 0:05:13]} 15. Bd2 {[%emt 0:03:56]} Ne5 {[%emt 0:01:40]} 16. Qf1 {[%emt 0:03:19]} d5 {[%emt 0:01:37]} 17. O-O-O {[%emt 0:00:21]} dxe4 {[%emt 0:01:17]} 18. Bxa6 {[%emt 0:00:54]} Nd3+ {[%emt 0:02:29]} 19. Bxd3 {[%emt 0:00:22]} exd3 {[%emt 0:00:21]} 20. Qxd3 {[%emt 0:00:21]} Kf8 {[%emt 0:01:10]} 21. Rhe1 {[%emt 0:01:36]} Kg8 {[%emt 0:00:45]} 22. f4 {[%emt 0:00:21]} Bc5 {[%emt 0:00:53]} 23. Ncb5 {[%emt 0:02:02]} Qd5 {[%emt 0:00:27]} 24. Kb1 {[%emt 0:01:08]} Ne4 {[%emt 0:00:38]} 25. Be3 {[%emt 0:00:21]} Qh5 {[%emt 0:00:31]} 26. f5 {[%emt 0:00:31]} exf5 {[%emt 0:00:27]} 27. Rf1 {[%emt 0:00:20]} Rd8 {[%emt 0:00:43]} 28. Rxf5 {[%emt 0:00:31]} Qxh2 {[%emt 0:00:24]} 29. Qc4 {[%emt 0:00:36]} Rd7 {[%emt 0:00:39]} 30. Rdf1 {[%emt 0:01:45]} Rg7 {[%emt 0:00:21]} 31. Ka1 {[%emt 0:00:39]} Qh3 {[%emt 0:00:43]} 32. R5f3 {[%emt 0:00:24]} Qg4 {[%emt 0:00:24]} 33. Nf5 {[%emt 0:00:38]} Rg6 {[%emt 0:00:36]} 34. Nh6+ {[%emt 0:00:33]} Rxh6 {[%emt 0:00:22]} 35. Bxh6 {[%emt 0:00:20]} Bd5 {[%emt 0:00:32]} 36. Qd3 {[%emt 0:00:35]} Bc6 {[%emt 0:00:31]} 37. Rf4 {[%emt 0:00:31]} Qg6 {[%emt 0:00:33]} 38. Qh3 {[%emt 0:00:26]} Nf2 {[%emt 0:00:33]} 39. R1xf2 {[%emt 0:00:34]} Bxf2 {[%emt 0:00:25]} 40. Rg4 {[%emt 0:00:28]} Rd1+ {[%emt 0:00:33]} 41. Ka2 {[%emt 0:00:21]} Bd5+ {[%emt 0:00:30]} 42. b3 {[%emt 0:00:21]} Rh1 {[%emt 0:00:32]} 43. Rxg6+ {[%emt 0:00:25]} hxg6 {[%emt 0:00:20]} 44. Qc8+ {[%emt 0:00:38]} Kh7 {[%emt 0:00:22]} 45. Bd2 {[%emt 0:00:24]} Be6 {[%emt 0:00:24]} 46. Qb8 {[%emt 0:00:36]} g5 {[%emt 0:00:45]} 47. Bxg5 {[%emt 0:00:27]} 1-0

[Event "MPL-1 Indian Chess Tour 2022"]
[Site "Online"]
[Date "2022.03.31"]
[Round "11.4"]
[White "Sadhwani, Raunak"]
[Black "Ganguly, Surya Shekhar"]
[Result "1-0"]
[ECO "B90"]
[WhiteElo "2616"]
[BlackElo "2627"]
[Annotator "ChessBase"]
[PlyCount "101"]
[EventDate "2022.03.30"]
[EventType "tourn"]
[EventCountry "NET"]
[SourceTitle "playchess.com"]
[Source "ChessBase"]
[SourceQuality "1"]
[TimeControl "5400+30"]

1. e4 {[%emt 1:15:40]} c5 {[%emt 1:15:40]} 2. Nf3 {[%emt 0:00:22]} d6 {[%emt 0:00:22]} 3. d4 {[%emt 0:00:31]} cxd4 {[%emt 0:00:21]} 4. Nxd4 {[%emt 0:00:20]} Nf6 {[%emt 0:00:21]} 5. Nc3 {[%emt 0:00:20]} a6 {[%emt 0:00:21]} 6. h3 {[%emt 0:00:23]} e5 {[%emt 0:00:25]} 7. Nb3 {[%emt 0:00:21]} Be7 {[%emt 0:00:42]} 8. g4 {[%emt 0:00:34]} h6 {[%emt 0:00:22]} 9. Be3 {[%emt 0:00:48]} Be6 {[%emt 0:00:23]} 10. Qf3 {[%emt 0:01:45]} Nbd7 {[%emt 0:00:27]} 11. O-O-O {[%emt 0:00:22]} Rc8 {[%emt 0:02:07]} 12. Nd5 {[%emt 0:00:29]} Bxd5 {[%emt 0:01:12]} 13. exd5 {[%emt 0:00:19]} Nb6 {[%emt 0:01:31]} 14. Kb1 {[%emt 0:04:21]} Nc4 {[%emt 0:02:05]} 15. Bxc4 {[%emt 0:00:55]} Rxc4 {[%emt 0:00:22]} 16. Nd2 {[%emt 0:00:23]} Rc8 {[%emt 0:01:24]} 17. h4 {[%emt 0:00:22]} Qc7 {[%emt 0:01:12]} 18. c3 {[%emt 0:00:46]} h5 {[%emt 0:00:54]} 19. g5 {[%emt 0:00:29]} Ng4 {[%emt 0:00:22]} 20. Ne4 {[%emt 0:00:35]} Nxe3 {[%emt 0:01:13]} 21. fxe3 {[%emt 0:00:31]} g6 {[%emt 0:00:40]} 22. Rhf1 {[%emt 0:00:26]} Rf8 {[%emt 0:00:54]} 23. Rf2 {[%emt 0:01:13]} Qc4 {[%emt 0:00:25]} 24. b3 {[%emt 0:00:30]} Qb5 {[%emt 0:00:29]} 25. Kb2 {[%emt 0:00:54]} Kd8 {[%emt 0:00:48]} 26. a4 {[%emt 0:00:41]} Qd7 {[%emt 0:00:25]} 27. Rdf1 {[%emt 0:00:33]} b5 {[%emt 0:00:53]} 28. a5 {[%emt 0:00:50]} Qc7 {[%emt 0:00:24]} 29. Qh3 {[%emt 0:02:14]} Ke8 {[%emt 0:03:02]} 30. Rc2 {[%emt 0:01:13]} Rb8 {[%emt 0:00:30]} 31. Ra1 {[%emt 0:01:40]} Qd7 {[%emt 0:00:33]} 32. Qxd7+ {[%emt 0:00:58]} Kxd7 {[%emt 0:00:22]} 33. Rf1 {[%emt 0:00:27]} Bd8 {[%emt 0:01:03]} 34. c4 {[%emt 0:01:42]} bxc4 {[%emt 0:00:48]} 35. Rxc4 {[%emt 0:00:20]} Rb5 {[%emt 0:00:22]} 36. Rc6 {[%emt 0:00:47]} Rxd5 {[%emt 0:02:37]} 37. Rxa6 {[%emt 0:00:23]} Ke6 {[%emt 0:00:39]} 38. b4 {[%emt 0:00:37]} Bc7 {[%emt 0:01:59]} 39. Ra7 {[%emt 0:00:48]} Rc8 {[%emt 0:01:05]} 40. Rf6+ {[%emt 0:01:01]} Ke7 {[%emt 0:00:23]} 41. Nc3 {[%emt 0:00:20]} Rd2+ {[%emt 0:00:25]} 42. Kb3 {[%emt 0:00:50]} Ke8 {[%emt 0:00:33]} 43. Nb5 {[%emt 0:00:36]} Bb8 {[%emt 0:00:25]} 44. Raxf7 {[%emt 0:01:21]} Rd3+ {[%emt 0:00:22]} 45. Ka4 {[%emt 0:00:29]} Rc1 {[%emt 0:00:22]} 46. Na7 {[%emt 0:00:53]} Bxa7 {[%emt 0:00:45]} 47. Rxa7 {[%emt 0:00:20]} Rd5 {[%emt 0:00:22]} 48. Rxg6 {[%emt 0:00:39]} Kf8 {[%emt 0:00:23]} 49. Rh6 {[%emt 0:00:29]} Kg8 {[%emt 0:00:21]} 50. Re6 {[%emt 0:00:33]} Kf8 {[%emt 0:00:38]} 51. g6 {[%emt 0:00:24]} 1-0

[Event "MPL-1 Indian Chess Tour 2022"]
[Site "Online"]
[Date "2022.03.27"]
[Round "11.7"]
[White "Lalith Babu M R"]
[Black "Erigaisi Arjun"]
[Result "1/2-1/2"]
[ECO "E73"]
[WhiteElo "2563"]
[BlackElo "2633"]
[Annotator "COMBH"]
[PlyCount "95"]
[EventDate "2022.03.30"]
[EventType "tourn"]
[EventCountry "NET"]
[SourceTitle "playchess.com"]
[Source "ChessBase"]
[SourceQuality "1"]
[TimeControl "5400+30"]

1. c4 {[%emt 1:15:40]} Nf6 {[%emt 1:15:40]} 2. Nc3 {[%emt 0:00:23]} g6 {[%emt 0:00:22]} 3. d4 {[%emt 0:00:35]} Bg7 {[%emt 0:00:22]} 4. e4 {[%emt 0:00:22]} d6 {[%emt 0:00:22]} 5. Be2 {[%emt 0:00:21]} O-O {[%emt 0:00:22]} 6. Be3 {[%emt 0:00:21]} Nc6 {[%emt 0:00:22]} 7. d5 {[%emt 0:00:35]} Ne5 {[%emt 0:00:23]} 8. h3 {[%emt 0:00:22]} e6 {[%emt 0:01:04]} 9. Nf3 {[%emt 0:00:41]} Nxf3+ {[%emt 0:02:13]} 10. Bxf3 {[%emt 0:00:23]} Nd7 {[%emt 0:00:21]} 11. O-O {[%emt 0:00:30]} Bxc3 {[%emt 0:01:09]} 12. bxc3 {[%emt 0:00:23]} e5 {[%emt 0:00:21]} 13. Qd2 {[%emt 0:01:22]} b6 {[%emt 0:00:42]} 14. Be2 {[%emt 0:00:44]} Nc5 {[%emt 0:01:21]} 15. Qc2 {[%emt 0:01:15]} f5 {[%emt 0:01:35]} 16. exf5 {[%emt 0:01:24]} Bxf5 {[%emt 0:00:20]} 17. Qc1 {[%emt 0:00:29]} Bd3 {[%emt 0:00:39]} 18. Bg5 {[%emt 0:00:55]} Qd7 {[%emt 0:01:10]} 19. Qe3 {[%emt 0:00:51]} Bxe2 {[%emt 0:00:47]} 20. Qxe2 {[%emt 0:00:22]} Qf5 {[%emt 0:00:21]} 21. Bh6 {[%emt 0:00:30]} Rf6 {[%emt 0:00:29]} 22. f4 {[%emt 0:00:30]} Qd3 {[%emt 0:01:21]} 23. Rae1 {[%emt 0:01:52]} Qxe2 {[%emt 0:03:16]} 24. Rxe2 {[%emt 0:00:22]} Nd3 {[%emt 0:00:20]} 25. g3 {[%emt 0:01:03]} exf4 {[%emt 0:00:45]} 26. gxf4 {[%emt 0:00:22]} Rf5 {[%emt 0:00:48]} 27. Re3 {[%emt 0:01:47]} Nb2 {[%emt 0:00:31]} 28. Re7 {[%emt 0:00:34]} Rf7 {[%emt 0:02:24]} 29. Rfe1 {[%emt 0:00:23]} Rxe7 {[%emt 0:00:24]} 30. Rxe7 {[%emt 0:00:21]} Nxc4 {[%emt 0:00:43]} 31. Kf2 {[%emt 0:01:57]} b5 {[%emt 0:01:29]} 32. Rg7+ {[%emt 0:00:38]} Kh8 {[%emt 0:00:21]} 33. Rxc7 {[%emt 0:00:21]} Nb6 {[%emt 0:00:23]} 34. Bg7+ {[%emt 0:00:21]} Kg8 {[%emt 0:00:22]} 35. Bd4 {[%emt 0:00:20]} Nxd5 {[%emt 0:00:39]} 36. Rg7+ {[%emt 0:00:22]} Kf8 {[%emt 0:00:21]} 37. Rxh7 {[%emt 0:00:25]} Re8 {[%emt 0:00:21]} 38. Kf3 {[%emt 0:01:46]} a5 {[%emt 0:00:24]} 39. Ra7 {[%emt 0:01:45]} b4 {[%emt 0:01:24]} 40. c4 {[%emt 0:00:24]} Ne7 {[%emt 0:00:22]} 41. Rxa5 {[%emt 0:00:38]} Rc8 {[%emt 0:00:21]} 42. Bf6 {[%emt 0:03:51]} Rxc4 {[%emt 0:00:24]} 43. Bxe7+ {[%emt 0:00:55]} Kxe7 {[%emt 0:00:19]} 44. Rb5 {[%emt 0:00:26]} Ke6 {[%emt 0:00:34]} 45. Kg4 {[%emt 0:00:28]} Rc2 {[%emt 0:00:21]} 46. Rxb4 {[%emt 0:00:27]} Rg2+ {[%emt 0:00:25]} 47. Kf3 {[%emt 0:00:22]} Rxa2 {[%emt 0:00:32]} 48. Rb8 {[%emt 0:00:21]} 1/2-1/2

[Event "MPL-1 Indian Chess Tour 2022"]
[Site "Online"]
[Date "2022.03.27"]
[Round "11.8"]
[White "Puranik, Abhimanyu"]
[Black "Sankalp Gupta"]
[Result "0-1"]
[ECO "B11"]
[WhiteElo "2618"]
[BlackElo "2536"]
[Annotator "ChessBase"]
[PlyCount "54"]
[EventDate "2022.03.30"]
[EventType "tourn"]
[EventCountry "NET"]
[SourceTitle "playchess.com"]
[Source "ChessBase"]
[SourceQuality "1"]
[TimeControl "5400+30"]

1. e4 {[%emt 1:15:40]} c6 {[%emt 1:15:40]} 2. Nf3 {[%emt 0:00:23]} d5 {[%emt 0:00:25]} 3. Nc3 {[%emt 0:00:21]} Bg4 {[%emt 0:00:23]} 4. h3 {[%emt 0:00:21]} Bxf3 {[%emt 0:00:22]} 5. Qxf3 {[%emt 0:00:21]} e6 {[%emt 0:00:20]} 6. Be2 {[%emt 0:00:30]} Bc5 {[%emt 0:00:24]} 7. O-O {[%emt 0:00:21]} Ne7 {[%emt 0:00:38]} 8. Rd1 {[%emt 0:01:15]} d4 {[%emt 0:01:58]} 9. Nb1 {[%emt 0:00:22]} Nd7 {[%emt 0:00:35]} 10. d3 {[%emt 0:00:31]} O-O {[%emt 0:00:29]} 11. Qg3 {[%emt 0:00:46]} f5 {[%emt 0:01:01]} 12. Bg5 {[%emt 0:03:36]} Qe8 {[%emt 0:02:14]} 13. Nd2 {[%emt 0:00:47]} e5 {[%emt 0:01:05]} 14. Bxe7 {[%emt 0:04:42]} f4 {[%emt 0:00:26]} 15. Qh2 {[%emt 0:00:21]} Bxe7 {[%emt 0:00:36]} 16. h4 {[%emt 0:00:24]} h5 {[%emt 0:01:35]} 17. Qh3 {[%emt 0:00:24]} Rf6 {[%emt 0:00:23]} 18. Bxh5 {[%emt 0:01:13]} Qxh5 {[%emt 0:00:22]} 19. Qxd7 {[%emt 0:00:21]} Bd6 {[%emt 0:07:04]} 20. Nf3 {[%emt 0:00:56]} Raf8 {[%emt 0:00:23]} 21. Kf1 {[%emt 0:00:43]} Rg6 {[%emt 0:00:39]} 22. Qxb7 {[%emt 0:02:09]} Rxg2 {[%emt 0:01:42]} 23. Ke2 {[%emt 0:00:22]} Rg3 {[%emt 0:02:55]} 24. fxg3 {[%emt 0:00:22]} fxg3 {[%emt 0:00:20]} 25. Rf1 {[%emt 0:00:21]} g2 {[%emt 0:00:40]} 26. Qd7 {[%emt 0:02:12]} g1=Q {[%emt 0:00:33]} 27. Qh3 {[%emt 0:01:24]} Qe3+ {[%emt 0:00:22]} 0-1

[Event "MPL-1 Indian Chess Tour 2022"]
[Site "Online"]
[Date "2022.03.27"]
[Round "12.1"]
[White "Sethuraman, S.P."]
[Black "Sankalp Gupta"]
[Result "1/2-1/2"]
[ECO "A28"]
[WhiteElo "2619"]
[BlackElo "2536"]
[Annotator "ChessBase"]
[PlyCount "90"]
[EventDate "2022.03.30"]
[EventType "tourn"]
[EventCountry "NET"]
[SourceTitle "playchess.com"]
[Source "ChessBase"]
[SourceQuality "1"]
[TimeControl "5400+30"]

1. c4 {[%emt 1:15:40]} e5 {[%emt 1:15:40]} 2. Nc3 {[%emt 0:00:25]} Nf6 {[%emt 0:00:44]} 3. Nf3 {[%emt 0:00:23]} Nc6 {[%emt 0:00:20]} 4. e3 {[%emt 0:00:21]} Bb4 {[%emt 0:00:40]} 5. Qc2 {[%emt 0:00:21]} Bxc3 {[%emt 0:00:29]} 6. Qxc3 {[%emt 0:00:23]} d6 {[%emt 0:00:36]} 7. d4 {[%emt 0:00:34]} Qe7 {[%emt 0:00:37]} 8. d5 {[%emt 0:01:04]} Nb8 {[%emt 0:00:25]} 9. b4 {[%emt 0:00:55]} O-O {[%emt 0:00:29]} 10. Bb2 {[%emt 0:00:24]} b5 {[%emt 0:01:18]} 11. Nd2 {[%emt 0:00:44]} bxc4 {[%emt 0:00:33]} 12. Bxc4 {[%emt 0:00:23]} Bb7 {[%emt 0:00:32]} 13. e4 {[%emt 0:00:21]} c6 {[%emt 0:00:23]} 14. dxc6 {[%emt 0:00:48]} Nxc6 {[%emt 0:00:20]} 15. O-O {[%emt 0:00:25]} Rac8 {[%emt 0:00:21]} 16. Qb3 {[%emt 0:03:50]} Qc7 {[%emt 0:01:17]} 17. Rac1 {[%emt 0:02:05]} Qb6 {[%emt 0:00:25]} 18. a3 {[%emt 0:00:22]} Nd4 {[%emt 0:00:49]} 19. Qd3 {[%emt 0:00:22]} d5 {[%emt 0:01:03]} 20. exd5 {[%emt 0:01:06]} Nxd5 {[%emt 0:00:19]} 21. Bxd4 {[%emt 0:01:14]} exd4 {[%emt 0:01:38]} 22. Bxd5 {[%emt 0:01:16]} Bxd5 {[%emt 0:00:20]} 23. Nf3 {[%emt 0:00:59]} Qb7 {[%emt 0:01:44]} 24. Ng5 {[%emt 0:01:12]} g6 {[%emt 0:00:32]} 25. Qxd4 {[%emt 0:03:01]} Bxg2 {[%emt 0:00:27]} 26. Rxc8 {[%emt 0:00:24]} Rxc8 {[%emt 0:00:25]} 27. Re1 {[%emt 0:00:21]} h6 {[%emt 0:02:16]} 28. Ne4 {[%emt 0:00:25]} Bxe4 {[%emt 0:00:24]} 29. Qxe4 {[%emt 0:00:21]} Qc7 {[%emt 0:00:42]} 30. Qf3 {[%emt 0:00:46]} Kg7 {[%emt 0:00:42]} 31. Kg2 {[%emt 0:00:22]} Rd8 {[%emt 0:00:58]} 32. Qe4 {[%emt 0:01:19]} Kh7 {[%emt 0:01:05]} 33. Re3 {[%emt 0:00:27]} Qd7 {[%emt 0:01:18]} 34. h3 {[%emt 0:00:36]} h5 {[%emt 0:01:13]} 35. Qf3 {[%emt 0:02:55]} Kg7 {[%emt 0:00:29]} 36. Qe4 {[%emt 0:00:31]} Kh7 {[%emt 0:00:22]} 37. Qc4 {[%emt 0:01:00]} Kg8 {[%emt 0:01:01]} 38. b5 {[%emt 0:00:47]} Rc8 {[%emt 0:00:34]} 39. Qb4 {[%emt 0:00:45]} Qd5+ {[%emt 0:00:44]} 40. Rf3 {[%emt 0:00:33]} Rc4 {[%emt 0:02:24]} 41. Qb3 {[%emt 0:00:21]} h4 {[%emt 0:01:56]} 42. Kh2 {[%emt 0:00:38]} Qe5+ {[%emt 0:01:05]} 43. Kg2 {[%emt 0:00:21]} Qd5 {[%emt 0:00:20]} 44. Kh2 {[%emt 0:00:21]} Qe5+ {[%emt 0:01:16]} 45. Kg2 {[%emt 0:00:21]} Qd5 {[%emt 0:00:20]} 1/2-1/2